bitfinex-derivatives/quotes_ETHF0:USTF0_20251119
["timestamp","ask_amount","ask_price","bid_price","bid_amount"]
[1763532084177,0.53777,3015.0,3014.7,0.1]
[1763532084374,1.33018,3014.9,3014.7,0.1]
[1763532084575,2.53655835,3014.8,3014.7,0.1]
[1763532084775,0.7924,3014.8,3014.7,0.1]
[1763532085072,0.7924,3014.8,3014.7,0.10427964]
[1763532090876,0.765,3014.5,3014.4,3.2111172]
[1763532091081,1.64404,3014.5,3014.4,0.0033172]
[1763532091484,4.85184,3014.5,3014.4,0.0033172]
[1763532091684,4.51064,3014.5,3014.4,0.0033172]
[1763532091984,1.30284,3014.5,3014.4,0.00610184]
[1763532093173,4.85184,3014.5,3014.4,1.84e-06]
[1763532093378,1.30292,3014.1,3014.0,3.2078]
[1763532094073,0.765,3013.7,3013.6,3.2078]
[1763532094274,0.53805,3013.4,3013.3,0.7641]
[1763532094475,0.54104641,3013.4,3013.3,0.76655067]
[1763532097387,1.30604641,3013.4,3013.3,0.00245067]
[1763532099584,3.2078,3014.1,3014.0,0.7641]
[1763532099786,0.53792,3014.1,3014.0,1.265]
[1763532099984,0.5379,3014.2,3014.1,0.7641]
[1763532100694,0.5420756,3014.2,3014.1,0.7641]
[1763532101085,0.53795,3014.0,3013.8,3.2078]
[1763532101289,0.0041756,3014.2,3014.1,0.7641]
[1763532102382,0.53783,3014.6,3014.5,1.265]
[1763532103386,0.00285233,3014.6,3014.5,1.265]
[1763532103590,0.00497569,3015.1,3015.0,1.80276]
[1763532103788,0.53769,3015.4,3015.3,0.7641]
[1763532104685,0.54058928,3015.4,3015.3,0.7641]
[1763532105486,0.53773,3015.2,3015.1,0.7641]
[1763532106289,0.765,3015.1,3015.0,0.00497568]
[1763532106495,0.53773,3015.2,3015.1,0.7641]
[1763532106690,0.54058928,3015.4,3015.3,0.7641]
[1763532107587,0.00289928,3015.4,3015.3,0.7641]
[1763532111396,0.00289928,3015.4,3015.3,1.95513538]
[1763532112095,0.00497569,3015.7,3015.3,1.95513538]
[1763532112290,0.00497569,3015.7,3015.6,4.50955]
[1763532113287,0.00810658,3015.7,3015.6,4.51350689]
[1763532114295,2.894,3016.8,3016.5,1.265]
[1763532114486,3.2078,3017.1,3016.5,4.4728]
[1763532114684,3.2078,3017.1,3017.0,1.265]
[1763532114896,0.53737,3017.2,3017.1,0.7641]
[1763532115297,0.00429891,3017.2,3017.1,0.7641]
[1763532117294,0.53738,3017.1,3017.0,0.5009]
[1763532117689,0.53738,3017.1,3017.0,1.2038]
[1763532117896,0.7069,3017.0,3016.9,3.2078]
[1763532118286,0.53738,3017.1,3017.0,1.1446]
[1763532119199,0.7069,3017.0,3016.9,3.2078]
[1763532119997,0.00429891,3017.2,3017.1,0.7029]
[1763532120189,3.2078,3018.0,3017.9,0.7029]
[1763532120388,0.53722,3018.1,3017.9,0.7029]
[1763532120591,0.53726,3017.8,3017.7,3.2078]
[1763532121302,1.24684679,3017.8,3017.7,3.21056446]
[1763532122005,1.24425,3017.3,3017.2,3.2078]
[1763532122196,0.53735,3017.3,3017.2,3.9107]
[1763532122401,0.53735,3017.3,3017.2,3.2078]
[1763532123103,0.53735,3017.3,3017.2,3.21113611]
[1763532123504,1.24425,3017.3,3017.2,3.21113611]
[1763532123706,0.53735,3017.3,3017.2,3.91403611]
[1763532124008,1.24425,3017.3,3017.2,3.21113611]
[1763532124899,0.53735,3017.3,3017.2,3.91403611]
[1763532125701,1.24425,3017.3,3017.2,3.21113611]
[1763532125894,0.53735,3017.3,3017.2,3.91403611]
[1763532127306,0.00268679,3017.8,3017.4,0.7029]
[1763532127607,0.53731,3017.5,3017.4,0.7029]
[1763532129199,0.53735,3017.3,3017.2,3.91403611]
[1763532129604,0.53735,3017.3,3017.2,0.70623611]
[1763532129801,0.00268679,3017.8,3017.7,0.7029]
[1763532130007,0.53994679,3017.8,3017.7,0.7029]
[1763532130809,3.2078,3018.3,3018.2,0.7029]
[1763532130997,3.2078,3018.7,3018.6,0.7029]
[1763532131596,3.74483,3019.1,3019.0,0.7029]
[1763532131798,3.74830648,3019.1,3019.0,0.7029]
[1763532131996,1.24398,3018.8,3018.7,0.00497569]
[1763532132804,1.24398,3018.8,3018.0,3.6495]
[1763532132805,0.5372,3018.1,3018.0,3.6495]
[1763532133011,0.53727,3017.7,3017.6,3.2078]
[1763532133195,0.53735,3017.3,3017.2,0.70623611]
[1763532133609,1.24425,3017.3,3017.2,0.00333611]
[1763532133906,0.53747,3016.6,3016.4,3.2078]
[1763532134406,0.53751,3016.4,3016.2,0.00497569]
[1763532134610,0.53765,3015.6,3015.2,3.2078]
[1763532134802,0.53765,3015.6,3015.5,0.44418337]
[1763532134803,3.74893329,3015.6,3015.5,0.44418337]
[1763532135107,0.53774,3015.1,3015.0,0.4417]
[1763532135309,3.74554,3015.1,3015.0,0.4417]
[1763532135509,0.53784,3014.5,3014.4,0.4417]
[1763532136196,0.53784,3014.5,3014.4,0.44577541]
[1763532136596,0.00497569,3014.8,3014.4,0.44577541]
[1763532136808,0.00497569,3014.8,3014.6,3.2078]
[1763532137413,0.54277569,3014.8,3014.5,3.2078]
[1763532137709,0.00497569,3014.8,3014.5,3.2078]
[1763532138306,0.53782,3014.7,3014.5,3.2078]
[1763532138607,0.53782,3014.7,3014.6,0.7029]
[1763532139202,0.53782,3014.7,3014.5,3.2078]
[1763532139507,0.53782,3014.7,3014.6,0.7029]
[1763532140812,1.24474,3014.5,3014.4,5.41e-06]
[1763532141005,0.53784,3014.5,3014.4,0.70290541]
[1763532141214,0.00497569,3014.8,3014.4,1.14460541]
[1763532141511,0.53783,3014.6,3014.5,0.7029]
[1763532142320,0.53783,3014.6,3014.4,0.44170541]
[1763532143518,0.00497569,3014.8,3014.7,0.8256]
[1763532144412,0.54276569,3014.8,3014.7,0.8256]
[1763532146323,0.00497569,3014.8,3014.7,0.8256]
[1763532147434,0.53769,3015.4,3015.3,0.8256]
[1763532150227,0.53774,3015.1,3015.0,1.2342]
[1763532150933,0.53784,3014.5,3014.4,1.21050541]
[1763532151527,0.53784,3014.5,3014.4,5.41e-06]
[1763532152735,0.53784,3014.5,3013.1,0.53808]
[1763532152736,1.95808282,3014.6,3013.5,3.2078]
[1763532152937,3.2078,3014.0,3013.5,3.2078]
[1763532153129,0.53799,3013.7,3013.5,3.2078]
[1763532153326,0.53799,3013.7,3013.6,0.7688]
[1763532153832,0.53799,3013.7,3013.6,0.7719674]
[1763532154234,0.53796,3013.9,3013.8,1.2525]
[1763532155033,0.00497569,3014.0,3013.9,0.7688]
[1763532155427,3.2078,3014.4,3014.3,0.7688]
[1763532155930,0.5378,3014.8,3014.7,0.7688]
[1763532156127,0.5378,3014.8,3014.7,3.2078]
[1763532156429,0.53786,3014.5,3014.4,0.7688]
[1763532156635,0.53786,3014.5,3014.4,3.98157569]
[1763532157637,0.53786,3014.5,3014.4,3.21277569]
[1763532158334,0.53786,3014.5,3014.4,3.98157569]
[1763532159735,1.30346,3014.5,3014.4,3.21277569]
[1763532160138,0.53786,3014.5,3014.4,3.98157569]
[1763532161237,1.30346,3014.5,3014.4,3.21277569]
[1763532162434,0.53786,3014.5,3014.4,3.21277569]
[1763532163638,1.30346,3014.5,3014.4,3.21277569]
[1763532164439,1.79136,3014.5,3014.4,3.21277569]
[1763532164938,1.79136,3014.5,3014.4,0.00497569]
[1763532165334,1.30352,3014.1,3014.0,4.10133312]
[1763532165529,0.7656,3014.1,3014.0,4.10133312]
[1763532165931,1.2535,3014.0,3013.9,0.89353312]
[1763532166134,0.7656,3013.7,3013.6,3.2109674]
[1763532166332,1.30359,3013.7,3013.6,3.2109674]
[1763532167043,4.51139,3013.7,3013.6,0.0031674]
[1763532167242,1.30364,3013.4,3013.3,0.00497569]
[1763532168438,1.30701347,3013.4,3013.3,0.00852827]
[1763532171540,0.53822,3012.4,3012.3,3.9766]
[1763532172131,0.4879,3013.0,3012.9,0.7688]
[1763532172436,1.30377,3012.7,3012.6,0.00497568]
[1763532172636,1.30377,3012.7,3012.6,0.00842836]
[1763532173838,4.51157,3012.7,3012.6,0.00842836]
[1763532174136,0.53829,3012.0,3011.9,3.9766]
[1763532175133,0.53826,3012.2,3011.9,3.98007866]
[1763532175328,0.53828,3012.1,3011.9,3.98007866]
[1763532175533,0.4879,3012.0,3011.9,3.98007866]
[1763532175731,0.4879,3012.0,3011.9,3.21127866]
[1763532175940,0.53828,3012.1,3012.0,0.7688]
[1763532176136,0.4879,3012.0,3011.9,3.21127866]
[1763532177534,0.53828,3012.1,3012.0,0.7247]
[1763532177739,0.443,3012.0,3011.9,3.21127866]
[1763532178940,1.1831,3012.0,3011.9,3.21127866]
[1763532180343,1.1831,3012.0,3011.9,0.00347866]
[1763532181046,0.443,3012.0,3011.9,0.72817866]
[1763532182151,1.1831,3012.0,3011.9,0.00347866]
[1763532182540,0.443,3012.0,3011.9,0.72817866]
[1763532182743,1.1831,3012.0,3011.9,0.00347866]
[1763532183546,1.1831,3012.0,3011.9,0.72817866]
[1763532183735,0.443,3012.0,3011.9,0.72817866]
[1763532184240,0.00337347,3013.4,3013.1,0.7247]
[1763532184449,0.00337347,3013.4,3013.3,1.26276]
[1763532184638,3.2078,3014.6,3013.9,0.7247]
[1763532184843,3.2078,3014.6,3014.1,0.7247]
[1763532184844,0.53789,3014.3,3014.1,0.7247]
[1763532185148,3.2078,3014.6,3014.5,0.7247]
[1763532185336,1.1545761,3015.7,3014.5,9.2078]
[1763532185540,0.00384141,3015.7,3015.6,3.2078]
[1763532186140,0.00497569,3016.0,3015.6,3.74543]
[1763532186335,0.00497569,3016.0,3015.6,3.2078]
[1763532186737,0.00497569,3016.0,3015.8,0.5376]
[1763532187142,0.00743204,3016.0,3015.8,0.5376]
[1763532187348,0.443,3017.4,3015.8,6.0]
[1763532187546,0.5374,3017.1,3016.9,3.2078]
[1763532188346,0.00497569,3017.3,3017.0,0.5374]
[1763532188550,0.443,3018.0,3017.4,0.53731]
[1763532188744,0.98022,3018.0,3017.9,3.2078]
[1763532189047,0.53729,3017.6,3017.4,3.2078]
[1763532189248,0.98033,3017.4,3017.0,3.2078]
[1763532189452,0.53736,3017.3,3017.0,3.2078]
[1763532189655,0.44572843,3017.4,3017.0,3.2078]
[1763532189839,0.53738,3017.2,3017.0,3.2078]
[1763532190243,0.7401,3017.1,3017.0,3.2078]
[1763532190447,0.53738,3017.2,3017.0,3.2078]
[1763532190852,0.44572843,3017.4,3016.4,3.2078]
[1763532190853,3.2078,3017.1,3016.4,3.2078]
[1763532191040,3.2078,3017.1,3014.9,1.27260132]
[1763532191041,1.74826317,3016.8,3015.8,3.2078]
[1763532191237,0.53759,3016.0,3015.8,3.2078]
[1763532191854,0.53759,3016.0,3015.8,3.21082829]
[1763532193155,0.53759,3015.9,3015.8,3.21082829]
[1763532193350,0.443,3016.3,3015.8,3.21082829]
[1763532193659,0.53736,3017.3,3016.5,0.53747]
[1763532193954,0.53736,3017.3,3017.2,3.2078]
[1763532194140,5.39906317,3018.0,3016.8,3.2078]
[1763532194341,0.98041,3017.0,3016.8,3.2078]
[1763532194543,0.53749,3016.5,3016.3,3.2078]
[1763532194950,0.443,3016.3,3015.9,3.2078]
[1763532195345,0.53758,3016.0,3015.9,3.2078]
[1763532195652,0.53758,3016.0,3015.8,0.00302829]
[1763532195653,2.28584317,3016.0,3015.8,0.00302829]
[1763532196054,0.53763,3015.7,3015.6,0.00497569]
[1763532197149,0.53763,3015.7,3015.6,0.00834413]
[1763532199752,0.53772,3015.2,3015.1,3.2078]
[1763532200457,0.53783,3014.6,3014.5,3.2078]
[1763532200755,0.53789,3014.3,3014.2,0.00497569]
[1763532200955,0.53789,3014.3,3014.2,0.00743686]
[1763532202052,0.53786,3014.5,3014.2,0.00743686]
[1763532202257,0.00268735,3014.6,3014.4,3.2078]
[1763532202562,0.53788,3014.3,3014.2,0.00743686]
[1763532202858,0.00268735,3014.6,3014.2,3.21523686]
[1763532203255,0.53785,3014.5,3014.2,3.75312686]
[1763532203657,0.00268735,3014.6,3014.2,3.21523686]
[1763532204353,0.53773,3015.2,3014.2,4.96350003]
[1763532204555,0.53771,3015.3,3015.1,3.74553]
[1763532204947,0.53771,3015.3,3015.1,3.2078]
[1763532205257,0.443,3015.6,3014.7,3.2078]
[1763532205560,0.53779,3014.9,3014.7,3.2078]
[1763532205856,1.03269,3014.9,3014.7,3.2078]
[1763532206960,0.4949,3014.9,3014.3,3.2078]
[1763532207151,0.53786,3014.4,3014.3,3.2078]
[1763532208956,3.7027,3014.9,3014.3,3.2078]
[1763532209156,0.53785,3014.5,3014.3,3.2078]
[1763532211557,0.5144,3014.4,3014.3,3.2078]
[1763532212256,1.316,3014.4,3014.3,3.2078]
[1763532212563,3.7027,3014.9,3014.3,3.2078]
[1763532212855,0.5144,3014.4,3014.3,3.2078]
[1763532213058,0.53785,3014.5,3014.3,3.2078]
[1763532213361,0.5144,3014.4,3014.3,3.2078]
[1763532214456,0.53779,3014.9,3014.3,9.2078]
[1763532214654,0.38827423,3014.9,3014.7,0.5378]
[1763532214857,0.38827423,3014.9,3014.8,3.2078]
[1763532215452,0.53781,3014.8,3014.7,3.2078]
[1763532215955,0.53785,3014.5,3014.3,3.2078]
[1763532216461,0.53785,3014.5,3014.3,3.74568]
[1763532217058,0.53785,3014.5,3014.3,3.2078]
[1763532217361,0.5144,3015.0,3014.7,0.53779]
[1763532217661,0.53777,3014.9,3014.8,3.74558]
[1763532217865,0.53775,3015.1,3014.9,0.53777]
[1763532218564,0.53777,3015.0,3014.8,3.2078]
[1763532219062,3.2078,3015.3,3014.8,3.2078]
[1763532219367,0.53772,3015.2,3015.0,0.53774]
[1763532219563,0.53772,3015.2,3015.1,3.2078]
[1763532219864,0.5377,3015.4,3015.1,3.74553]
[1763532220062,0.53771,3015.3,3015.1,3.2078]
[1763532221872,0.54265569,3015.5,3015.3,0.53769]
[1763532223065,0.00497569,3015.5,3015.3,0.53769]
[1763532223265,0.00497569,3015.5,3015.3,1.72872538]
[1763532223775,1.05205,3015.6,3015.4,1.1878711]
[1763532223967,0.53768,3015.5,3015.3,1.7255711]
[1763532224266,1.33928,3015.5,3015.4,1.1878711]
[1763532224483,0.5377,3015.3,3015.2,1.1878711]
[1763532224765,0.54189744,3015.3,3015.1,4.3956711]
[1763532226170,0.00419744,3015.3,3015.2,1.1878711]
[1763532226375,0.00419744,3015.3,3015.2,1.78655307]
[1763532226671,0.53763,3015.7,3015.1,3.2078]
[1763532226967,0.53763,3015.7,3015.5,3.2078]
[1763532226968,0.5144,3015.6,3015.5,3.2078]
[1763532227371,0.5144,3015.6,3015.5,4.39728758]
[1763532227571,0.51799906,3015.6,3015.5,4.39728758]
[1763532227967,0.00359906,3015.6,3015.5,4.39728758]
[1763532228162,0.51799906,3015.6,3015.5,4.39728758]
[1763532228671,0.51799906,3015.6,3015.5,3.2078]
[1763532229074,0.51799906,3015.6,3015.5,4.39728758]
[1763532229276,0.51799906,3015.6,3015.5,3.2078]
[1763532230876,1.31959906,3015.6,3015.5,3.2078]
[1763532231174,0.5377,3015.3,3015.1,1.18948758]
[1763532231366,1.05216,3015.0,3014.8,2.32202137]
[1763532231566,0.53774,3015.2,3015.0,0.53775]
[1763532231767,0.53774,3015.2,3015.1,4.39701416]
[1763532232074,0.53774,3015.2,3015.1,3.2078]
[1763532235076,1.33934,3015.2,3015.1,3.2078]
[1763532236171,0.53779,3014.8,3014.7,1.18921416]
[1763532236377,0.53779,3014.8,3014.6,4.39701416]
[1763532237175,0.53779,3014.8,3014.6,4.93482416]
[1763532237577,0.53777,3014.9,3014.7,1.18921416]
[1763532238280,0.53777,3014.9,3014.7,1.72702416]
[1763532238478,0.53777,3014.9,3014.7,1.18921416]
[1763532239781,0.53777,3014.9,3014.7,1.72702416]
[1763532239977,0.53777,3014.9,3014.8,1.18921416]
[1763532240578,0.5144,3015.0,3014.9,0.53777]
[1763532240774,0.53772,3015.2,3014.9,2.32199137]
[1763532240975,0.53774,3015.1,3015.0,1.78522422]
[1763532241483,0.51799906,3015.6,3015.4,0.53768]
[1763532241679,1.05564906,3015.6,3015.5,1.19031766]
[1763532241879,1.30908,3015.4,3015.3,1.19031766]
[1763532242080,0.7714,3015.1,3015.0,1.19031766]
[1763532242675,1.76466,3015.0,3014.9,1.19031766]
[1763532244283,1.76466,3015.0,3014.8,1.78547649]
[1763532244480,0.53777,3014.9,3014.8,1.19162087]
[1763532244682,0.7714,3014.8,3014.7,1.19162087]
[1763532244887,1.76474,3014.5,3014.4,0.53506739]
[1763532245087,1.30928,3014.3,3014.2,0.00743686]
[1763532246781,0.53787,3014.4,3014.3,0.53787]
[1763532246989,0.53787,3014.4,3014.2,1.79291335]
[1763532247186,0.53787,3014.4,3014.2,0.00743686]
[1763532247487,0.4555,3014.5,3014.2,2.33080335]
[1763532247687,0.53787,3014.4,3014.2,2.33080335]
[1763532249685,0.53787,3014.4,3014.2,0.00743686]
[1763532249885,0.53787,3014.4,3014.2,0.54532686]
[1763532250097,0.4555,3014.5,3014.3,0.53787]
[1763532250280,0.4555,3015.0,3014.5,0.53784]
[1763532250479,0.5378,3014.8,3014.6,3.74562]
[1763532250684,0.4555,3015.0,3014.6,3.2078]
[1763532250881,0.51799906,3015.6,3015.0,0.53775]
[1763532251086,0.51799906,3015.6,3015.3,3.2078]
[1763532251284,1.30908,3015.4,3015.3,3.2078]
[1763532251682,0.53772,3015.3,3015.2,3.2078]
[1763532251885,0.99327,3015.0,3014.8,4.99251969]
[1763532252089,0.53779,3014.8,3014.6,1.78471969]
[1763532252390,0.53783,3014.6,3014.4,4.99251969]
[1763532252582,0.53783,3014.6,3014.4,3.2078]
[1763532252982,0.7714,3014.5,3014.4,3.2078]
[1763532253286,0.53783,3014.6,3014.4,3.2078]
[1763532254494,0.7714,3014.5,3014.4,3.2078]
[1763532255089,0.53783,3014.6,3014.4,3.2078]
[1763532255785,0.7714,3014.5,3014.4,3.2078]
[1763532255986,0.99336,3014.4,3014.2,0.00743686]
[1763532258193,0.7714,3014.3,3014.2,0.00743686]
[1763532258791,0.99336,3014.4,3014.2,0.00743686]
[1763532258992,0.99337,3014.4,3014.2,0.00743686]
[1763532259192,0.53784,3014.6,3014.4,0.53786]
[1763532259395,0.53779,3014.8,3014.6,0.53782]
[1763532259597,0.99326,3015.0,3014.8,0.53778]
[1763532260293,0.53779,3014.8,3014.6,2.32253969]
[1763532260494,0.53779,3014.8,3014.6,1.78471969]
[1763532260696,0.4555,3015.0,3014.5,4.99251969]
[1763532260892,0.53782,3014.7,3014.5,4.99251969]
[1763532261098,0.53782,3014.7,3014.5,5.53035969]
[1763532261300,0.53782,3014.7,3014.6,1.78471969]
[1763532261501,0.53779,3014.9,3014.6,1.78471969]
[1763532262295,0.4555,3015.0,3014.9,0.53777]
[1763532262496,0.4555,3015.0,3014.8,0.53778]
[1763532262697,0.53773,3015.2,3015.0,0.53774]
[1763532263499,0.53769,3015.4,3015.1,0.53773]
[1763532263800,3.72579906,3015.6,3015.1,0.53773]
[1763532263801,3.72579906,3015.6,3015.2,0.53771]
[1763532264203,3.72579906,3015.6,3015.1,1.78471969]
[1763532264503,0.53771,3015.3,3015.1,1.78471969]
[1763532266099,0.7403,3015.2,3015.1,1.78471969]
[1763532266298,0.53774,3015.1,3014.9,4.99251969]
[1763532266494,0.4527,3015.0,3014.9,4.99251969]
[1763532266700,0.51799906,3015.6,3014.9,5.58987077]
[1763532266894,0.51799906,3015.6,3015.4,3.74548]
[1763532267201,0.51799906,3015.6,3015.5,1.78578583]
[1763532267503,0.51799906,3015.6,3015.4,3.74548]
[1763532267504,3.6633,3016.5,3016.3,0.53751]
[1763532267705,0.4555,3016.5,3016.3,0.53751]
[1763532268103,3.2078,3017.0,3016.3,0.53751]
[1763532268104,0.96524,3016.8,3016.4,0.53749]
[1763532268407,0.53747,3016.7,3016.5,0.53748]
[1763532268705,0.53748,3016.6,3016.4,0.00421649]
[1763532268907,0.7418,3016.5,3016.4,0.00421649]
[1763532269399,0.53768,3015.4,3015.3,3.2078]
[1763532269608,1.27948,3015.4,3015.3,3.2078]
[1763532269803,0.53768,3015.4,3015.3,3.2078]
[1763532270303,1.27948,3015.4,3015.3,3.21168141]
[1763532270502,1.27954,3015.1,3015.0,0.00497569]
[1763532270710,3.74554,3015.1,3015.0,0.00497569]
[1763532271202,0.53772,3015.2,3015.0,0.00497569]
[1763532271505,0.53756,3016.1,3015.1,5.58987077]
[1763532271699,0.53756,3016.1,3015.6,0.53764]
[1763532271902,0.53758,3016.0,3015.6,0.53764]
[1763532272104,0.5376,3015.9,3015.5,3.2078]
[1763532272304,0.53762,3015.8,3015.5,3.2078]
[1763532272505,0.5376,3015.9,3015.6,0.53764]
[1763532272809,0.53762,3015.8,3015.5,3.2078]
[1763532273007,0.53762,3015.8,3015.5,3.74546]
[1763532274105,3.2078,3016.4,3015.6,1.78138128]
[1763532274305,3.2078,3016.4,3016.2,0.53753]
[1763532275000,0.53753,3016.3,3016.0,0.53756]
[1763532275205,3.74532,3016.4,3016.0,0.53757]
[1763532275406,3.74532,3016.4,3015.9,3.74539]
[1763532275407,0.53755,3016.2,3015.9,3.74539]
[1763532275608,0.4278,3016.3,3015.9,3.2078]
[1763532275808,3.74532,3016.4,3015.9,3.2078]
[1763532276404,0.00497569,3016.5,3015.9,3.2078]
[1763532276609,0.54247569,3016.5,3015.9,4.98918128]
[1763532276807,0.53752,3016.4,3015.9,3.2078]
[1763532277308,0.00497569,3016.5,3016.2,0.53754]
[1763532277499,0.54246569,3016.5,3016.2,0.53754]
[1763532277697,0.54246569,3016.5,3015.9,3.2078]
[1763532277698,0.53753,3016.3,3015.9,3.2078]
[1763532277902,0.4278,3016.3,3015.9,3.2078]
[1763532278100,0.53755,3016.2,3016.0,0.53757]
[1763532278606,0.53757,3016.1,3015.9,3.74539]
[1763532278809,0.4278,3016.3,3016.1,0.53755]
[1763532279009,0.54246569,3016.5,3015.9,3.2078]
[1763532279010,0.00497569,3016.5,3016.2,0.53754]
[1763532279515,0.00497569,3016.5,3016.3,0.53751]
[1763532279712,0.00497569,3016.5,3016.3,0.53752]
[1763532280006,0.00497569,3016.5,3016.4,3.2078]
[1763532282113,3.2078,3017.4,3017.1,0.53738]
[1763532282510,0.5373,3017.6,3016.8,3.2078]
[1763532282713,3.2078,3017.8,3017.3,0.53734]
[1763532283019,0.5373,3017.6,3017.3,0.53998588]
[1763532283212,3.21180228,3017.8,3017.3,0.00264588]
[1763532283514,3.21180228,3017.8,3017.3,0.53998588]
[1763532283515,3.74907228,3017.8,3017.3,0.53998588]
[1763532283711,0.5373,3017.6,3017.3,0.00264588]
[1763532283911,0.4278,3017.4,3017.3,0.00264588]
[1763532284915,3.74906228,3017.8,3017.4,0.53733]
[1763532285116,0.53728,3017.7,3017.4,0.53733]
[1763532285712,0.53727,3017.7,3017.3,0.00264588]
[1763532286015,0.5373,3017.6,3017.3,0.00264588]
[1763532286314,0.00400228,3017.8,3017.5,0.53729]
[1763532286518,0.00400228,3017.8,3017.6,3.74509]
[1763532286716,0.00400228,3017.8,3017.6,3.2078]
[1763532286916,1.27907,3017.7,3017.6,3.2078]
[1763532287512,0.00400228,3017.8,3017.6,3.74508]
[1763532288018,0.54126228,3017.8,3017.6,3.2078]
[1763532288411,0.00400228,3017.8,3017.6,3.74509]
[1763532291821,0.4278,3018.6,3018.2,0.53717]
[1763532292220,0.53715,3018.4,3018.2,0.53717]
[1763532292927,0.54100031,3018.4,3018.2,0.53717]
[1763532293126,0.00385031,3018.4,3018.2,0.53717]
[1763532293524,0.00385031,3018.4,3018.1,3.2078]
[1763532293722,0.7418,3018.2,3018.1,3.2078]
[1763532293928,0.96503,3018.0,3017.8,0.53725]
[1763532294123,0.4278,3018.0,3017.8,0.53725]
[1763532294324,0.96502,3018.0,3017.6,3.74508]
[1763532294528,0.53727,3017.8,3017.6,3.2078]
[1763532295224,0.4278,3018.0,3017.6,3.74509]
[1763532295727,0.53726,3017.8,3017.6,3.2078]
[1763532296129,0.4278,3018.0,3017.7,0.53727]
[1763532296329,0.53726,3017.8,3017.6,3.2078]
[1763532296731,0.7418,3017.7,3017.6,3.2078]
[1763532297732,0.4278,3018.0,3017.6,3.74508]
[1763532297922,0.4278,3018.0,3017.8,0.53724]
[1763532298123,3.2078,3018.3,3017.6,3.2078]
[1763532298328,0.00385031,3018.4,3018.2,0.53718]
[1763532300625,0.00385031,3018.4,3018.1,3.2078]
[1763532300831,0.53718,3018.3,3018.1,3.2078]
[1763532301027,0.53726,3017.8,3017.7,3.2078]
[1763532301626,1.24046,3017.8,3017.7,3.2078]
[1763532304726,1.24053,3017.4,3017.3,3.21044588]
[1763532304937,4.44833,3017.4,3017.3,0.00264588]
[1763532305233,4.44833,3017.4,3017.2,0.00497569]
[1763532305234,0.7032,3017.3,3017.2,2.157e-05]
[1763532306134,0.7032,3017.3,3017.2,0.0031568]
[1763532306531,0.4382,3017.5,3017.2,0.0031568]
[1763532306835,0.53733,3017.4,3017.2,0.0031568]
[1763532307227,0.7032,3017.3,3017.2,0.0031568]
[1763532308729,3.2078,3017.4,3017.2,0.5405068]
[1763532308924,0.00495412,3017.6,3017.5,0.53731]
[1763532309131,0.4382,3017.5,3017.3,3.74513]
[1763532309936,0.4382,3017.5,3017.3,3.2078]
[1763532311033,1.24055,3017.3,3017.2,0.0031568]
[1763532316936,1.24055,3017.3,3016.9,3.2078]
[1763532316937,1.6788,3017.0,3016.9,3.2078]
[1763532317240,3.646,3017.5,3016.9,3.2078]
[1763532317535,0.4382,3017.0,3016.9,3.74522]
[1763532317836,1.1414,3017.0,3016.9,3.2078]
[1763532318043,1.1414,3017.0,3016.9,3.21127595]
[1763532318632,0.4382,3017.0,3016.9,3.21127595]
[1763532319137,4.18332,3017.5,3017.1,0.53738]
[1763532319442,3.646,3017.5,3017.3,0.53734]
[1763532319934,0.00495412,3017.6,3017.5,0.0748]
[1763532320143,0.97551,3017.5,3017.3,3.2078]
[1763532320537,0.00495412,3017.6,3017.5,0.0748]
[1763532321041,0.4382,3017.5,3017.3,3.2078]
[1763532321241,0.00495412,3017.6,3017.5,0.0748]
[1763532321938,0.00495412,3017.6,3017.5,0.61211]
[1763532322236,0.00495412,3017.6,3017.5,0.0748]
[1763532322435,3.74498,3018.3,3017.5,0.0748]
[1763532322630,0.4382,3018.0,3017.6,1.78138128]
[1763532322843,0.53726,3017.8,3017.5,1.78138128]
[1763532323045,0.4382,3018.0,3017.7,0.0748]
[1763532323342,0.97543,3018.0,3017.6,0.53729]
[1763532323640,0.53724,3017.9,3017.6,0.53729]
[1763532324042,0.4382,3018.0,3017.8,0.53726]
[1763532324434,0.4382,3018.0,3017.7,3.2078]
[1763532324435,0.53724,3017.9,3017.7,3.2078]
[1763532324639,0.6252,3017.8,3017.7,3.2078]
[1763532325236,0.53724,3017.9,3017.4,2.31870128]
[1763532325438,0.3955,3017.5,3017.4,1.78138128]
[1763532325643,1.16253,3017.4,3017.3,1.78138128]
[1763532325942,1.16253,3017.4,3017.1,1.78138128]
[1763532326145,1.16253,3017.4,3017.1,2.31875128]
[1763532326550,1.16256,3017.2,3017.1,1.78138128]
[1763532326846,0.6252,3017.1,3017.0,1.78138128]
[1763532328738,0.3955,3017.5,3017.0,1.78138128]
[1763532328739,0.53735,3017.3,3017.0,1.78138128]
[1763532329148,0.3955,3017.5,3017.1,1.78138128]
[1763532329443,0.6321,3016.7,3016.6,0.00497569]
[1763532329750,1.16955,3016.7,3016.6,0.00497569]
[1763532330447,1.16955,3016.7,3016.6,0.0086124]
[1763532331048,0.3811,3017.0,3016.6,0.0086124]
[1763532331243,0.53744,3016.8,3016.6,0.0086124]
[1763532331446,0.6321,3016.7,3016.6,0.0086124]
[1763532332450,3.2078,3016.8,3016.6,0.0086124]
[1763532332757,0.9185,3017.0,3016.8,0.53743]
[1763532332943,0.3811,3017.0,3016.8,0.53743]
[1763532333149,0.3811,3017.0,3016.8,3.74523]
[1763532333349,3.2078,3017.2,3016.9,0.5374]
[1763532333847,3.74517,3017.2,3016.9,0.5374]
[1763532334148,0.3811,3017.0,3016.8,3.2078]
[1763532334546,0.3811,3017.0,3016.9,0.53742]
[1763532335040,3.2078,3017.2,3016.9,0.53742]
[1763532335239,0.93282,3017.5,3017.1,0.53738]
[1763532335448,0.3955,3017.5,3016.9,0.53742]
[1763532335651,0.3955,3017.5,3017.2,0.53736]